[Event "Early-Titled-Tuesday-Blitz-January-16-2024"]
[Site "Chess.com"]
[Date "2024.01.16"]
[Round "1"]
[White "invisible_s0ul"]
[Black "bazar-wokzal"]
[Result "1-0"]
[WhiteElo "2294"]
[BlackElo "2602"]
[TimeControl "180+1"]
[EndTime "8:08:34 PST"]
[Termination "invisible_s0ul won on time"]

1. Nf3 {[%clk 0:02:53.1]} 1... g5 {[%clk 0:02:58.9]} 2. Nxg5 {[%clk 0:02:43.8]}
2... e5 {[%clk 0:02:58.7]} 3. d4 {[%clk 0:02:38.9]} 3... Be7 {[%clk 0:02:58.3]}
4. h4 {[%clk 0:02:03.2]} 4... h6 {[%clk 0:02:57.2]} 5. Nf3 {[%clk 0:02:02.9]}
5... e4 {[%clk 0:02:57.3]} 6. Nfd2 {[%clk 0:02:03.5]} 6... e3 {[%clk 0:02:57.3]}
7. Nf3 {[%clk 0:01:57.8]} 7... exf2+ {[%clk 0:02:57.1]} 8. Kxf2 {[%clk
0:01:58.7]} 8... Nf6 {[%clk 0:02:56.9]} 9. Nc3 {[%clk 0:01:53.5]} 9... d5 {[%clk
0:02:53.9]} 10. Bf4 {[%clk 0:01:49]} 10... Bf5 {[%clk 0:02:45.7]} 11. Ne5 {[%clk
0:01:47.2]} 11... Nc6 {[%clk 0:02:36.9]} 12. g3 {[%clk 0:01:43.2]} 12... Nxe5
{[%clk 0:02:32.3]} 13. Bxe5 {[%clk 0:01:43]} 13... Ng4+ {[%clk 0:02:32.2]} 14.
Kg1 {[%clk 0:01:41.3]} 14... Nxe5 {[%clk 0:02:32]} 15. dxe5 {[%clk 0:01:42.2]}
15... c6 {[%clk 0:02:21.7]} 16. Bg2 {[%clk 0:01:36.9]} 16... Rg8 {[%clk
0:02:12.4]} 17. Kh2 {[%clk 0:01:35.7]} 17... d4 {[%clk 0:01:49.2]} 18. Ne4
{[%clk 0:01:29.5]} 18... Bxh4 {[%clk 0:01:47.8]} 19. Nd6+ {[%clk 0:01:24]} 19...
Kf8 {[%clk 0:01:45.6]} 20. Nxf5 {[%clk 0:01:24.6]} 20... Bxg3+ {[%clk
0:01:45.5]} 21. Nxg3 {[%clk 0:01:05.7]} 21... Qh4+ {[%clk 0:01:44.4]} 22. Kg1
{[%clk 0:01:05.6]} 22... Qxg3 {[%clk 0:01:43.9]} 23. Qf1 {[%clk 0:00:56.8]}
23... Re8 {[%clk 0:01:36.8]} 24. Qf2 {[%clk 0:00:47.4]} 24... Qxe5 {[%clk
0:01:31.2]} 25. Rf1 {[%clk 0:00:47]} 25... Re7 {[%clk 0:01:25.8]} 26. Rxh6
{[%clk 0:00:43.8]} 26... Rg5 {[%clk 0:01:10.5]} 27. Rf6 {[%clk 0:00:41]} 27...
Rg7 {[%clk 0:01:01.8]} 28. Qf4 {[%clk 0:00:24]} 28... Qxe2 {[%clk 0:00:54.1]}
29. Qb8+ {[%clk 0:00:23.9]} 29... Re8 {[%clk 0:00:53.8]} 30. Qd6+ {[%clk
0:00:24.6]} 30... Kg8 {[%clk 0:00:53.4]} 31. R1f2 {[%clk 0:00:23.9]} 31... Qd1+
{[%clk 0:00:50.9]} 32. Kh2 {[%clk 0:00:21.2]} 32... Qh5+ {[%clk 0:00:49.2]} 33.
Kg1 {[%clk 0:00:19]} 33... Re1+ {[%clk 0:00:46.3]} 34. Rf1 {[%clk 0:00:19.6]}
34... Re2 {[%clk 0:00:46.7]} 35. Qb8+ {[%clk 0:00:15.3]} 35... Kh7 {[%clk
0:00:45.4]} 36. R6f2 {[%clk 0:00:15.2]} 36... Re6 {[%clk 0:00:22.2]} 37. Qh2
{[%clk 0:00:15]} 37... Qxh2+ {[%clk 0:00:17.4]} 38. Kxh2 {[%clk 0:00:15.9]}
38... Kg8 {[%clk 0:00:16.4]} 39. Bh3 {[%clk 0:00:14.8]} 39... Rh6 {[%clk
0:00:14.9]} 40. Rg2 {[%clk 0:00:14.6]} 40... Rxg2+ {[%clk 0:00:14.4]} 41. Kxg2
{[%clk 0:00:15.5]} 41... Kf8 {[%clk 0:00:14.8]} 42. Rf4 {[%clk 0:00:15.8]} 42...
c5 {[%clk 0:00:14.6]} 43. Rf5 {[%clk 0:00:15.8]} 43... b6 {[%clk 0:00:14.7]} 44.
Rd5 {[%clk 0:00:15.7]} 44... Ke7 {[%clk 0:00:14.9]} 45. Rd7+ {[%clk 0:00:15.8]}
45... Kf6 {[%clk 0:00:15.2]} 46. Rxa7 {[%clk 0:00:16.5]} 46... Rg6+ {[%clk
0:00:14.5]} 47. Kf2 {[%clk 0:00:15.8]} 47... Rh6 {[%clk 0:00:14.9]} 48. Bg2
{[%clk 0:00:16.1]} 48... Rh4 {[%clk 0:00:13.9]} 49. Rb7 {[%clk 0:00:16.3]} 49...
Rf4+ {[%clk 0:00:12]} 50. Kg3 {[%clk 0:00:16.2]} 50... Kg5 {[%clk 0:00:08.2]}
51. Rxb6 {[%clk 0:00:16.1]} 51... Rg4+ {[%clk 0:00:07.2]} 52. Kf2 {[%clk
0:00:16.8]} 52... Rf4+ {[%clk 0:00:07.4]} 53. Bf3 {[%clk 0:00:16.7]} 53... Rf5
{[%clk 0:00:06.5]} 54. Rc6 {[%clk 0:00:16.8]} 54... Kf4 {[%clk 0:00:06.1]} 55.
Ke2 {[%clk 0:00:15.6]} 55... Kg3 {[%clk 0:00:05.9]} 56. Be4 {[%clk 0:00:15.1]}
56... Rf2+ {[%clk 0:00:06.2]} 57. Kd3 {[%clk 0:00:15.8]} 57... f5 {[%clk
0:00:03.6]} 58. Bd5 {[%clk 0:00:11.8]} 58... f4 {[%clk 0:00:03.4]} 59. Rxc5
{[%clk 0:00:07.1]} 59... f3 {[%clk 0:00:03.8]} 60. Rc8 {[%clk 0:00:06.6]} 60...
Rf1 {[%clk 0:00:01.7]} 61. Rg8+ {[%clk 0:00:07]} 1-0

[Event "Early-Titled-Tuesday-Blitz-January-16-2024"]
[Site "Chess.com"]
[Date "2024.01.16"]
[Round "1"]
[White "Gryffindorac8"]
[Black "chucksterf10"]
[Result "1/2-1/2"]
[WhiteElo "2352"]
[BlackElo "2665"]
[TimeControl "180+1"]
[EndTime "8:08:35 PST"]
[Termination "Game drawn by repetition"]

1. d4 {[%clk 0:03:00.9]} 1... d6 {[%clk 0:02:56.4]} 2. e4 {[%clk 0:02:58.5]}
2... Nf6 {[%clk 0:02:56.6]} 3. Nc3 {[%clk 0:02:58.1]} 3... e5 {[%clk 0:02:55.7]}
4. Nf3 {[%clk 0:02:57.3]} 4... Nbd7 {[%clk 0:02:56.2]} 5. Bc4 {[%clk 0:02:56]}
5... Be7 {[%clk 0:02:56.7]} 6. a4 {[%clk 0:02:55.7]} 6... a5 {[%clk 0:02:56.6]}
7. O-O {[%clk 0:02:54.7]} 7... h6 {[%clk 0:02:55.1]} 8. Re1 {[%clk 0:02:50.4]}
8... c6 {[%clk 0:02:55.4]} 9. h3 {[%clk 0:02:49.9]} 9... g5 {[%clk 0:02:52.6]}
10. Nh2 {[%clk 0:02:44.6]} 10... exd4 {[%clk 0:02:48.6]} 11. Qxd4 {[%clk
0:02:41.3]} 11... Ne5 {[%clk 0:02:48.9]} 12. Bb3 {[%clk 0:02:23]} 12... Be6
{[%clk 0:02:47.3]} 13. Be3 {[%clk 0:01:45.4]} 13... Bxb3 {[%clk 0:02:43.6]} 14.
cxb3 {[%clk 0:01:46.3]} 14... Qd7 {[%clk 0:02:41.4]} 15. Rad1 {[%clk 0:01:43]}
15... Qe6 {[%clk 0:02:32.4]} 16. Qb6 {[%clk 0:01:26.4]} 16... Nfd7 {[%clk
0:02:28.4]} 17. Qxb7 {[%clk 0:01:24.6]} 17... Rb8 {[%clk 0:02:28.9]} 18. Qa6
{[%clk 0:01:21.8]} 18... O-O {[%clk 0:02:12.7]} 19. Qe2 {[%clk 0:01:11]} 19...
Rxb3 {[%clk 0:02:10.7]} 20. Nf3 {[%clk 0:01:10.1]} 20... Nxf3+ {[%clk
0:02:08.3]} 21. Qxf3 {[%clk 0:01:07.3]} 21... Rxb2 {[%clk 0:02:08.8]} 22. Bd4
{[%clk 0:01:03.7]} 22... Ne5 {[%clk 0:02:06.7]} 23. Qg3 {[%clk 0:00:59.3]} 23...
Bf6 {[%clk 0:02:00.8]} 24. Nd5 {[%clk 0:00:52.9]} 24... Ra2 {[%clk 0:01:32.8]}
25. Nxf6+ {[%clk 0:00:47.4]} 25... Qxf6 {[%clk 0:01:33.7]} 26. Rc1 {[%clk
0:00:40.4]} 26... Rxa4 {[%clk 0:01:31.9]} 27. Bxe5 {[%clk 0:00:40]} 27... dxe5
{[%clk 0:01:29.1]} 28. Rc5 {[%clk 0:00:33.3]} 28... Re8 {[%clk 0:01:22.4]} 29.
Rec1 {[%clk 0:00:32]} 29... Rxe4 {[%clk 0:01:22.6]} 30. Rxc6 {[%clk 0:00:30.5]}
30... Qf4 {[%clk 0:01:22.1]} 31. Qxf4 {[%clk 0:00:27.3]} 31... exf4 {[%clk
0:01:17.2]} 32. Rxh6 {[%clk 0:00:27.2]} 32... Re1+ {[%clk 0:01:17.4]} 33. Rxe1
{[%clk 0:00:27.7]} 33... Rxe1+ {[%clk 0:01:18.1]} 34. Kh2 {[%clk 0:00:28.4]}
34... Re2 {[%clk 0:01:18.7]} 35. f3 {[%clk 0:00:26.5]} 35... a4 {[%clk
0:01:13.7]} 36. Ra6 {[%clk 0:00:26.6]} 36... Ra2 {[%clk 0:01:13.5]} 37. h4
{[%clk 0:00:26.4]} 37... gxh4 {[%clk 0:01:11.3]} 38. Kh3 {[%clk 0:00:26.3]}
38... a3 {[%clk 0:01:01.8]} 39. Kxh4 {[%clk 0:00:26.2]} 39... Kg7 {[%clk
0:01:02.5]} 40. Kg4 {[%clk 0:00:24.5]} 40... Rxg2+ {[%clk 0:01:02.3]} 41. Kxf4
{[%clk 0:00:24.4]} 41... Ra2 {[%clk 0:01:03.2]} 42. Kf5 {[%clk 0:00:22.5]} 42...
Ra1 {[%clk 0:01:03.7]} 43. f4 {[%clk 0:00:21.5]} 43... a2 {[%clk 0:01:04.1]} 44.
Ra7 {[%clk 0:00:21.6]} 44... Kg8 {[%clk 0:00:29.2]} 45. Kf6 {[%clk 0:00:20.9]}
45... Rf1 {[%clk 0:00:29.9]} 46. Rxa2 {[%clk 0:00:19.9]} 46... Rxf4+ {[%clk
0:00:30.5]} 47. Kg5 {[%clk 0:00:20.2]} 47... Re4 {[%clk 0:00:30.4]} 48. Kf5
{[%clk 0:00:19.6]} 48... Re6 {[%clk 0:00:30.5]} 49. Ra4 {[%clk 0:00:18.4]} 49...
Kg7 {[%clk 0:00:30.9]} 50. Kf4 {[%clk 0:00:18.4]} 50... Rh6 {[%clk 0:00:30.6]}
51. Kf3 {[%clk 0:00:18.2]} 51... Kg6 {[%clk 0:00:30.3]} 52. Ra6+ {[%clk
0:00:16.7]} 52... f6 {[%clk 0:00:30.8]} 53. Ra5 {[%clk 0:00:16.1]} 53... Rh8
{[%clk 0:00:31.3]} 54. Rb5 {[%clk 0:00:15.7]} 54... Ra8 {[%clk 0:00:31.7]} 55.
Rb3 {[%clk 0:00:15.1]} 55... Ra4 {[%clk 0:00:31.9]} 56. Rc3 {[%clk 0:00:15.3]}
56... Rb4 {[%clk 0:00:32.1]} 57. Ra3 {[%clk 0:00:15.3]} 57... Kg5 {[%clk
0:00:32.5]} 58. Rc3 {[%clk 0:00:14.6]} 58... Ra4 {[%clk 0:00:32.7]} 59. Rb3
{[%clk 0:00:14.5]} 59... Rf4+ {[%clk 0:00:32.8]} 60. Kg3 {[%clk 0:00:13.3]}
60... Rg4+ {[%clk 0:00:33.4]} 61. Kf3 {[%clk 0:00:13.3]} 61... Rh4 {[%clk
0:00:34.3]} 62. Kf2 {[%clk 0:00:11.3]} 62... Rh2+ {[%clk 0:00:33.7]} 63. Kg3
{[%clk 0:00:10.7]} 63... Ra2 {[%clk 0:00:34.3]} 64. Rb4 {[%clk 0:00:08.3]} 64...
Ra3+ {[%clk 0:00:34.2]} 65. Kf2 {[%clk 0:00:06.9]} 65... f5 {[%clk 0:00:35.1]}
66. Kg2 {[%clk 0:00:05.8]} 66... Ra2+ {[%clk 0:00:35.6]} 67. Kf3 {[%clk
0:00:05.7]} 67... Ra3+ {[%clk 0:00:35.7]} 68. Kf2 {[%clk 0:00:06.3]} 68... Ra8
{[%clk 0:00:35.7]} 69. Rc4 {[%clk 0:00:05.9]} 69... Ra3 {[%clk 0:00:35.6]} 70.
Rb4 {[%clk 0:00:06.2]} 70... Kf6 {[%clk 0:00:36.2]} 71. Rc4 {[%clk 0:00:06]}
71... Ke5 {[%clk 0:00:36.9]} 72. Rb4 {[%clk 0:00:06.5]} 72... Rc3 {[%clk
0:00:37.5]} 73. Ra4 {[%clk 0:00:06.7]} 73... Rb3 {[%clk 0:00:37.2]} 74. Rc4
{[%clk 0:00:06.6]} 74... Kd5 {[%clk 0:00:37.1]} 75. Rf4 {[%clk 0:00:06.5]} 75...
Ke6 {[%clk 0:00:37.2]} 76. Ra4 {[%clk 0:00:07]} 76... Rc3 {[%clk 0:00:37.7]} 77.
Rb4 {[%clk 0:00:07.3]} 77... Ke5 {[%clk 0:00:38.1]} 78. Ra4 {[%clk 0:00:07.7]}
78... Rb3 {[%clk 0:00:38.6]} 79. Rc4 {[%clk 0:00:07.7]} 79... Kf6 {[%clk
0:00:39.1]} 80. Ra4 {[%clk 0:00:07.8]} 80... Rb2+ {[%clk 0:00:39.6]} 81. Kf3
{[%clk 0:00:07.4]} 81... Kg5 {[%clk 0:00:40.3]} 82. Rc4 {[%clk 0:00:07.2]} 82...
Ra2 {[%clk 0:00:40.9]} 83. Rb4 {[%clk 0:00:07.3]} 83... Ra3+ {[%clk 0:00:41.5]}
84. Kf2 {[%clk 0:00:07.5]} 1/2-1/2

[Event "Early-Titled-Tuesday-Blitz-January-16-2024"]
[Site "Chess.com"]
[Date "2024.01.16"]
[Round "1"]
[White "Aslanov_Umid"]
[Black "cycygogne"]
[Result "0-1"]
[WhiteElo "2601"]
[BlackElo "2290"]
[TimeControl "180+1"]
[EndTime "8:08:38 PST"]
[Termination "cycygogne won by resignation"]

1. e4 {[%clk 0:03:00.9]} 1... d5 {[%clk 0:02:59.7]} 2. Nf3 {[%clk 0:03:01.8]}
2... dxe4 {[%clk 0:02:58.8]} 3. Ng5 {[%clk 0:02:58.1]} 3... Nf6 {[%clk
0:02:51.5]} 4. Nc3 {[%clk 0:02:57.5]} 4... Bf5 {[%clk 0:02:48.2]} 5. Bc4 {[%clk
0:02:56.2]} 5... e6 {[%clk 0:02:44.2]} 6. O-O {[%clk 0:02:56.4]} 6... h6 {[%clk
0:02:43.2]} 7. Nh3 {[%clk 0:02:49.2]} 7... Bc5 {[%clk 0:02:42.8]} 8. Nf4 {[%clk
0:02:47.7]} 8... O-O {[%clk 0:02:31.8]} 9. h3 {[%clk 0:02:42.3]} 9... Nc6 {[%clk
0:02:30.9]} 10. a4 {[%clk 0:02:39.8]} 10... Nb4 {[%clk 0:02:27.3]} 11. Bb3
{[%clk 0:02:38.2]} 11... Nfd5 {[%clk 0:02:21.3]} 12. Ncxd5 {[%clk 0:02:29.4]}
12... Nxd5 {[%clk 0:02:17.9]} 13. Ne2 {[%clk 0:02:28.2]} 13... Qf6 {[%clk
0:02:10.4]} 14. Bxd5 {[%clk 0:01:50.2]} 14... exd5 {[%clk 0:02:11.3]} 15. d4
{[%clk 0:01:49.8]} 15... exd3 {[%clk 0:02:10.2]} 16. cxd3 {[%clk 0:01:50.7]}
16... d4 {[%clk 0:02:00.3]} 17. Bf4 {[%clk 0:01:47.9]} 17... Bd6 {[%clk
0:01:58.3]} 18. Bg3 {[%clk 0:01:23.1]} 18... Rfe8 {[%clk 0:01:56.3]} 19. b4
{[%clk 0:01:14.7]} 19... Rad8 {[%clk 0:01:44.1]} 20. b5 {[%clk 0:01:10.6]} 20...
c5 {[%clk 0:01:40.8]} 21. bxc6 {[%clk 0:01:08.9]} 21... bxc6 {[%clk 0:01:41.4]}
22. a5 {[%clk 0:01:08.1]} 22... c5 {[%clk 0:01:39.7]} 23. a6 {[%clk 0:00:52.3]}
23... Qg6 {[%clk 0:01:39.7]} 24. Bxd6 {[%clk 0:00:47.8]} 24... Rxd6 {[%clk
0:01:40.6]} 25. Kh2 {[%clk 0:00:44.3]} 25... Rxa6 {[%clk 0:01:31.6]} 26. Nf4
{[%clk 0:00:37]} 26... Qd6 {[%clk 0:01:30.3]} 27. Rxa6 {[%clk 0:00:35.4]} 27...
Qxa6 {[%clk 0:01:31.2]} 28. Re1 {[%clk 0:00:35.1]} 28... Be6 {[%clk 0:01:25.5]}
29. Qc2 {[%clk 0:00:29.3]} 29... Qd6 {[%clk 0:01:25.2]} 30. g3 {[%clk
0:00:29.4]} 30... a5 {[%clk 0:01:21.1]} 31. Qa4 {[%clk 0:00:28.3]} 31... Ra8
{[%clk 0:01:19.5]} 32. Nxe6 {[%clk 0:00:26]} 32... fxe6 {[%clk 0:01:19.5]} 33.
Qc4 {[%clk 0:00:26.3]} 33... Qd5 {[%clk 0:01:18.3]} 34. Qa4 {[%clk 0:00:21.3]}
34... e5 {[%clk 0:01:11.2]} 35. f4 {[%clk 0:00:15]} 35... exf4 {[%clk
0:01:09.6]} 36. Re8+ {[%clk 0:00:15.5]} 36... Rxe8 {[%clk 0:01:08.3]} 37. Qxe8+
{[%clk 0:00:16.4]} 37... Kh7 {[%clk 0:01:08.6]} 38. gxf4 {[%clk 0:00:17.3]}
38... Qf3 {[%clk 0:01:01.8]} 39. Qe5 {[%clk 0:00:15.5]} 39... Qxd3 {[%clk
0:00:55.2]} 40. f5 {[%clk 0:00:12.5]} 40... Qd2+ {[%clk 0:00:50.7]} 41. Kh1
{[%clk 0:00:12.3]} 41... Qc1+ {[%clk 0:00:46.5]} 42. Kh2 {[%clk 0:00:12.4]}
42... Qe3 {[%clk 0:00:46.6]} 43. Qd6 {[%clk 0:00:11.7]} 43... Qf2+ {[%clk
0:00:43.2]} 44. Kh1 {[%clk 0:00:12]} 44... Qxf5 {[%clk 0:00:43.3]} 45. h4 {[%clk
0:00:12.9]} 45... a4 {[%clk 0:00:41.7]} 46. Qa6 {[%clk 0:00:10.4]} 46... d3
{[%clk 0:00:41.3]} 47. Qxa4 {[%clk 0:00:09.8]} 47... d2 {[%clk 0:00:40.5]} 48.
Qd1 {[%clk 0:00:10.1]} 48... Qe4+ {[%clk 0:00:39.6]} 49. Kh2 {[%clk 0:00:09.5]}
49... Qxh4+ {[%clk 0:00:37]} 50. Kg2 {[%clk 0:00:09.9]} 50... Qg5+ {[%clk
0:00:36]} 51. Kf2 {[%clk 0:00:10.1]} 51... c4 {[%clk 0:00:35.9]} 52. Qc2+ {[%clk
0:00:08.4]} 52... g6 {[%clk 0:00:31.9]} 53. Qxc4 {[%clk 0:00:07.4]} 53... Qf5+
{[%clk 0:00:27.4]} 54. Ke2 {[%clk 0:00:07.3]} 54... Qe5+ {[%clk 0:00:20.6]} 55.
Kxd2 {[%clk 0:00:07.4]} 55... h5 {[%clk 0:00:20.2]} 56. Qf7+ {[%clk 0:00:07.1]}
56... Kh6 {[%clk 0:00:20.6]} 57. Qf8+ {[%clk 0:00:06.2]} 57... Kg5 {[%clk
0:00:20.7]} 58. Qa3 {[%clk 0:00:03.1]} 58... h4 {[%clk 0:00:20.1]} 59. Qd3
{[%clk 0:00:01.9]} 59... Qf4+ {[%clk 0:00:19.4]} 60. Ke1 {[%clk 0:00:02.4]}
60... Qg3+ {[%clk 0:00:19.1]} 61. Qxg3+ {[%clk 0:00:03]} 61... hxg3 {[%clk
0:00:20]} 62. Kf1 {[%clk 0:00:03.9]} 62... Kg4 {[%clk 0:00:19.9]} 63. Kg2 {[%clk
0:00:04.8]} 63... Kh4 {[%clk 0:00:18.4]} 64. Kg1 {[%clk 0:00:03.9]} 64... Kh3
{[%clk 0:00:17.6]} 65. Kh1 {[%clk 0:00:04.5]} 65... g2+ {[%clk 0:00:16.1]} 66.
Kg1 {[%clk 0:00:05.2]} 66... g5 {[%clk 0:00:16.6]} 67. Kf2 {[%clk 0:00:06]}
67... Kh2 {[%clk 0:00:17.2]} 68. Kf3 {[%clk 0:00:06.9]} 68... g1=Q {[%clk
0:00:17.2]} 69. Ke4 {[%clk 0:00:07.3]} 69... Qf2 {[%clk 0:00:16.6]} 0-1

[Event "Early-Titled-Tuesday-Blitz-January-16-2024"]
[Site "Chess.com"]
[Date "2024.01.16"]
[Round "1"]
[White "Glaive_64"]
[Black "GP9isback23"]
[Result "1/2-1/2"]
[WhiteElo "2328"]
[BlackElo "2640"]
[TimeControl "180+1"]
[EndTime "8:08:41 PST"]
[Termination "Game drawn - insufficient material"]

1. Nf3 {[%clk 0:03:00.9]} 1... d5 {[%clk 0:02:59.4]} 2. g3 {[%clk 0:02:58.8]}
2... Bg4 {[%clk 0:02:58.2]} 3. Bg2 {[%clk 0:02:59.4]} 3... Bxf3 {[%clk
0:02:58.7]} 4. Bxf3 {[%clk 0:03:00.3]} 4... e6 {[%clk 0:02:59.3]} 5. O-O {[%clk
0:03:00.5]} 5... Nf6 {[%clk 0:02:59.8]} 6. d3 {[%clk 0:03:00.9]} 6... Be7 {[%clk
0:03:00.1]} 7. Nd2 {[%clk 0:03:00.8]} 7... O-O {[%clk 0:03:00.8]} 8. e4 {[%clk
0:03:00.9]} 8... c6 {[%clk 0:03:01.4]} 9. Bg2 {[%clk 0:03:00.8]} 9... a5 {[%clk
0:03:01.7]} 10. h3 {[%clk 0:02:58.9]} 10... a4 {[%clk 0:03:02.2]} 11. a3 {[%clk
0:02:57.6]} 11... Na6 {[%clk 0:03:00.8]} 12. Re1 {[%clk 0:02:56.2]} 12... Qb6
{[%clk 0:02:59.7]} 13. Qe2 {[%clk 0:02:54.3]} 13... Rfe8 {[%clk 0:02:59.2]} 14.
Kh2 {[%clk 0:02:53]} 14... Nc7 {[%clk 0:02:51.3]} 15. f4 {[%clk 0:02:42.4]}
15... Nb5 {[%clk 0:02:50.5]} 16. c3 {[%clk 0:02:41.6]} 16... Nc7 {[%clk
0:02:48.1]} 17. Nf3 {[%clk 0:02:39.1]} 17... Na6 {[%clk 0:02:47.3]} 18. e5
{[%clk 0:02:36.2]} 18... Nd7 {[%clk 0:02:47.1]} 19. d4 {[%clk 0:02:36.4]} 19...
c5 {[%clk 0:02:44.8]} 20. g4 {[%clk 0:02:34.5]} 20... Nf8 {[%clk 0:02:34.5]} 21.
Be3 {[%clk 0:02:29.7]} 21... Qc6 {[%clk 0:02:24.9]} 22. f5 {[%clk 0:02:26.6]}
22... f6 {[%clk 0:02:23]} 23. Kh1 {[%clk 0:02:23.9]} 23... Nc7 {[%clk
0:02:21.8]} 24. Rf1 {[%clk 0:02:23.7]} 24... Rad8 {[%clk 0:02:18.4]} 25. Rae1
{[%clk 0:02:17.2]} 25... Nd7 {[%clk 0:02:16.7]} 26. Bf4 {[%clk 0:02:14.7]} 26...
fxe5 {[%clk 0:02:09]} 27. dxe5 {[%clk 0:01:45.8]} 27... Rf8 {[%clk 0:02:08.3]}
28. Ng5 {[%clk 0:01:36.8]} 28... Rde8 {[%clk 0:02:01.2]} 29. Qc2 {[%clk
0:01:33.2]} 29... Bxg5 {[%clk 0:01:57.4]} 30. Bxg5 {[%clk 0:01:33.4]} 30... exf5
{[%clk 0:01:55]} 31. Rxf5 {[%clk 0:01:26.9]} 31... Qe6 {[%clk 0:01:49.8]} 32. c4
{[%clk 0:01:19.2]} 32... dxc4 {[%clk 0:01:40.2]} 33. Bf4 {[%clk 0:01:13.7]}
33... b5 {[%clk 0:01:35.6]} 34. Rd1 {[%clk 0:01:11.3]} 34... g6 {[%clk
0:01:29.3]} 35. Rd6 {[%clk 0:01:05.2]} 35... Qe7 {[%clk 0:01:27.5]} 36. Bg5
{[%clk 0:01:03.6]} 36... Qg7 {[%clk 0:01:22.3]} 37. Rxf8+ {[%clk 0:00:39.9]}
37... Nxf8 {[%clk 0:01:16.2]} 38. Bf6 {[%clk 0:00:35.7]} 38... Qf7 {[%clk
0:01:13.3]} 39. Bc6 {[%clk 0:00:33.7]} 39... Re6 {[%clk 0:01:09.2]} 40. Qd2
{[%clk 0:00:30]} 40... Rxd6 {[%clk 0:00:31.4]} 41. Qxd6 {[%clk 0:00:23.5]} 41...
h6 {[%clk 0:00:27.5]} 42. Bd7 {[%clk 0:00:20.5]} 42... Nce6 {[%clk 0:00:24.5]}
43. Bxb5 {[%clk 0:00:20.5]} 43... Nf4 {[%clk 0:00:19.1]} 44. Qxc5 {[%clk
0:00:17.6]} 44... Qb7+ {[%clk 0:00:17]} 45. Bc6 {[%clk 0:00:14.1]} 45... Qxb2
{[%clk 0:00:17]} 46. Qxc4+ {[%clk 0:00:14.5]} 46... N8e6 {[%clk 0:00:15.2]} 47.
Bd5 {[%clk 0:00:14.1]} 47... Qb1+ {[%clk 0:00:09.9]} 48. Kh2 {[%clk 0:00:12.2]}
48... Qb2+ {[%clk 0:00:07.9]} 49. Kg1 {[%clk 0:00:10.5]} 49... Qb1+ {[%clk
0:00:05.1]} 50. Kf2 {[%clk 0:00:08.3]} 50... Qb2+ {[%clk 0:00:04.5]} 51. Kg3
{[%clk 0:00:06]} 51... Qb3+ {[%clk 0:00:02.4]} 52. Qxb3 {[%clk 0:00:05.8]} 52...
axb3 {[%clk 0:00:03.3]} 53. Bxb3 {[%clk 0:00:05.4]} 53... Kf8 {[%clk 0:00:03.9]}
54. Bxe6 {[%clk 0:00:05.7]} 54... Nxe6 {[%clk 0:00:04.8]} 55. Kf3 {[%clk
0:00:06.2]} 55... Ke8 {[%clk 0:00:03.3]} 56. Ke4 {[%clk 0:00:06.4]} 56... Kd7
{[%clk 0:00:02.8]} 57. Kd5 {[%clk 0:00:07]} 57... Nf4+ {[%clk 0:00:02.9]} 58.
Ke4 {[%clk 0:00:06.8]} 58... Nxh3 {[%clk 0:00:03.8]} 59. Bg7 {[%clk 0:00:07.3]}
59... Nf2+ {[%clk 0:00:03.7]} 60. Kf3 {[%clk 0:00:07]} 60... Nd3 {[%clk
0:00:03.9]} 61. Ke4 {[%clk 0:00:07.1]} 61... Nf2+ {[%clk 0:00:03.6]} 62. Kf3
{[%clk 0:00:07.7]} 62... Nd3 {[%clk 0:00:03.9]} 63. a4 {[%clk 0:00:08]} 63... h5
{[%clk 0:00:03.7]} 64. gxh5 {[%clk 0:00:08.2]} 64... gxh5 {[%clk 0:00:04.6]} 65.
Bf6 {[%clk 0:00:08.9]} 65... Nc5 {[%clk 0:00:04]} 66. a5 {[%clk 0:00:08.5]}
66... Ke6 {[%clk 0:00:04.6]} 67. Kf4 {[%clk 0:00:07.6]} 67... Nd3+ {[%clk
0:00:03]} 68. Ke4 {[%clk 0:00:08.2]} 68... Nb4 {[%clk 0:00:03.9]} 69. Kd4 {[%clk
0:00:08.7]} 69... Nc6+ {[%clk 0:00:04]} 70. Kc5 {[%clk 0:00:08.9]} 70... Nxa5
{[%clk 0:00:04.9]} 71. Kd4 {[%clk 0:00:09.3]} 71... Nc6+ {[%clk 0:00:05.2]} 72.
Ke4 {[%clk 0:00:09.9]} 72... h4 {[%clk 0:00:03.2]} 73. Bxh4 {[%clk 0:00:09.8]}
73... Nxe5 {[%clk 0:00:03.8]} 1/2-1/2